Workbook

Sheet Choke
A1: Calculate impedance of ferrite cored inductor
A3: Reference:
A4: A method for estimating the impedance of a ferrite cored toroidal inductor at RF
A6: Inputs:
A7: Al (nH for 1t) | B7: 567 | C7: Neosid 28-053-31
A8: N | B8: 11
A9: Cs (pF) | B9: 5
A11: Constants:
A12: Mix | B12: =Mix!B1 -> F14
A13: µ | B13: =Mix!B2 -> 220
A15: Calculated values:
A16: 2*pi*N^2*Al | B16: =2*PI()*$B$8^2*$B$7*0.000000001 -> 0.0004310704944
A18: f (MHz) | B18: 1.04 | C18: =B18*2^(1/5) -> 1.194646289 | D18: =C18*2^(1/5) -> 1.372288227 | E18: 1.576345229 | F18: 1.810745172 | G18: 2.08 | H18: 2.389292578 | I18: 2.744576454 | J18: 3.152690458 | K18: 3.621490343 | L18: 4.16 | M18: 4.778585157 | N18: 5.489152909 | O18: 6.305380917 | P18: 7.242980687 | Q18: 8.32 | R18: 9.557170314 | S18: 10.97830582 | T18: 12.61076183 | U18: 14.48596137 | V18: 16.64 | W18: 19.11434063 | X18: 21.95661164 | Y18: 25.22152367 | Z18: 28.97192275 | AA18: 33.28 | AB18: 38.22868125 | AC18: 43.91322327 | AD18: 50.44304733 | AE18: 57.94384549
A19: µ'' | B19: =csinterpolate(CSTableU2,Choke!B18*1000000) -> 1.912144504 | C19: =csinterpolate(CSTableU2,Choke!C18*1000000) -> 1.95743623 | D19: =csinterpolate(CSTableU2,Choke!D18*1000000) -> 2.022637433 | E19: =csinterpolate(CSTableU2,Choke!E18*1000000) -> 2.138116621 | F19: =csinterpolate(CSTableU2,Choke!F18*1000000) -> 2.273334663 | G19: =csinterpolate(CSTableU2,Choke!G18*1000000) -> 2.469646646 | H19: =csinterpolate(CSTableU2,Choke!H18*1000000) -> 2.779121326 | I19: =csinterpolate(CSTableU2,Choke!I18*1000000) -> 3.177532046 | J19: =csinterpolate(CSTableU2,Choke!J18*1000000) -> 3.761712879 | K19: =csinterpolate(CSTableU2,Choke!K18*1000000) -> 4.543117622 | L19: =csinterpolate(CSTableU2,Choke!L18*1000000) -> 6.042178053 | M19: =csinterpolate(CSTableU2,Choke!M18*1000000) -> 8.807747984 | N19: =csinterpolate(CSTableU2,Choke!N18*1000000) -> 13.98032437 | O19: =csinterpolate(CSTableU2,Choke!O18*1000000) -> 23.48481567 | P19: =csinterpolate(CSTableU2,Choke!P18*1000000) -> 38.25935403 | Q19: =csinterpolate(CSTableU2,Choke!Q18*1000000) -> 56.47237111 | R19: =csinterpolate(CSTableU2,Choke!R18*1000000) -> 80.67496552 | S19: =csinterpolate(CSTableU2,Choke!S18*1000000) -> 95.76610851 | T19: =csinterpolate(CSTableU2,Choke!T18*1000000) -> 106.1598743 | U19: =csinterpolate(CSTableU2,Choke!U18*1000000) -> 111.7984532 | V19: =csinterpolate(CSTableU2,Choke!V18*1000000) -> 115.4157617 | W19: =csinterpolate(CSTableU2,Choke!W18*1000000) -> 118.749054 | X19: =csinterpolate(CSTableU2,Choke!X18*1000000) -> 121.5887777 | Y19: =csinterpolate(CSTableU2,Choke!Y18*1000000) -> 124.2342219 | Z19: =csinterpolate(CSTableU2,Choke!Z18*1000000) -> 125.6886262 | AA19: =csinterpolate(CSTableU2,Choke!AA18*1000000) -> 126.4883788 | AB19: =csinterpolate(CSTableU2,Choke!AB18*1000000) -> 131.6712406 | AC19: =csinterpolate(CSTableU2,Choke!AC18*1000000) -> 151.4620054 | AD19: =csinterpolate(CSTableU2,Choke!AD18*1000000) -> 204.8988468 | AE19: =csinterpolate(CSTableU2,Choke!AE18*1000000) -> 325.6578398
A20: µ' | B20: =csinterpolate(CSTableU1,Choke!B18*1000000) -> 216.5667708 | C20: =csinterpolate(CSTableU1,Choke!C18*1000000) -> 217.1487135 | D20: =csinterpolate(CSTableU1,Choke!D18*1000000) -> 217.9262916 | E20: =csinterpolate(CSTableU1,Choke!E18*1000000) -> 218.2613063 | F20: =csinterpolate(CSTableU1,Choke!F18*1000000) -> 218.8656477 | G20: =csinterpolate(CSTableU1,Choke!G18*1000000) -> 220.6979829 | H20: =csinterpolate(CSTableU1,Choke!H18*1000000) -> 222.8693142 | I20: =csinterpolate(CSTableU1,Choke!I18*1000000) -> 225.4354044 | J20: =csinterpolate(CSTableU1,Choke!J18*1000000) -> 229.2168725 | K20: =csinterpolate(CSTableU1,Choke!K18*1000000) -> 235.7729488 | L20: =csinterpolate(CSTableU1,Choke!L18*1000000) -> 244.2413672 | M20: =csinterpolate(CSTableU1,Choke!M18*1000000) -> 253.2042855 | N20: =csinterpolate(CSTableU1,Choke!N18*1000000) -> 258.2351046 | O20: =csinterpolate(CSTableU1,Choke!O18*1000000) -> 263.8496158 | P20: =csinterpolate(CSTableU1,Choke!P18*1000000) -> 265.1203921 | Q20: =csinterpolate(CSTableU1,Choke!Q18*1000000) -> 266.953075 | R20: =csinterpolate(CSTableU1,Choke!R18*1000000) -> 259.5720348 | S20: =csinterpolate(CSTableU1,Choke!S18*1000000) -> 251.2045728 | T20: =csinterpolate(CSTableU1,Choke!T18*1000000) -> 237.8401552 | U20: =csinterpolate(CSTableU1,Choke!U18*1000000) -> 218.2588283 | V20: =csinterpolate(CSTableU1,Choke!V18*1000000) -> 198.9633438 | W20: =csinterpolate(CSTableU1,Choke!W18*1000000) -> 182.680892 | X20: =csinterpolate(CSTableU1,Choke!X18*1000000) -> 168.4900771 | Y20: =csinterpolate(CSTableU1,Choke!Y18*1000000) -> 155.6798804 | Z20: =csinterpolate(CSTableU1,Choke!Z18*1000000) -> 144.2490185 | AA20: =csinterpolate(CSTableU1,Choke!AA18*1000000) -> 131.9340754 | AB20: =csinterpolate(CSTableU1,Choke!AB18*1000000) -> 113.8081279 | AC20: =csinterpolate(CSTableU1,Choke!AC18*1000000) -> 80.07250926 | AD20: =csinterpolate(CSTableU1,Choke!AD18*1000000) -> 12.66483834 | AE20: =csinterpolate(CSTableU1,Choke!AE18*1000000) -> -120.1824215
A21: Rl | B21: =B19/$B$13*$B$16*B18*1000000 -> 3.896544725 | C21: 4.581973548 | D21: 5.438623498 | E21: 6.604019439 | F21: 8.065779155 | G21: 10.06523157 | H21: 13.01075376 | I21: 17.08798638 | J21: 23.2376707 | K21: 32.23791376 | L21: 49.25070668 | M21: 82.46882867 | N21: 150.3654968 | O21: 290.1510193 | P21: 542.975929 | Q21: 920.6296672 | R21: 1510.753923 | S21: 2060.026378 | T21: 2623.17543 | U21: 3173.282483 | V21: 3763.085281 | W21: 4447.491188 | X21: 5230.996502 | Y21: 6139.573183 | Z21: 7135.081112 | AA21: 8248.207172 | AB21: 9862.927958 | AC21: 13032.40703 | AD21: 20251.93132 | AE21: 36973.83243
A22: Xl | B22: =B20/$B$13*$B$16*B18*1000000 -> 441.3171216 | C22: 508.3024651 | D22: 585.9770174 | E22: 674.145599 | F22: 776.5341405 | G22: 899.4713104 | H22: 1043.386534 | I22: 1212.336198 | J22: 1415.968303 | K22: 1673.042307 | L22: 1990.848305 | M22: 2370.805895 | N22: 2777.449848 | O22: 3259.818431 | P22: 3762.582899 | Q22: 4351.949737 | R22: 4860.856987 | S22: 5403.665809 | T22: 5876.95168 | U22: 6195.049188 | V22: 6487.121167 | W22: 6841.921096 | X22: 7248.78579 | Y22: 7693.596853 | Z22: 8188.715864 | AA22: 8603.316739 | AB22: 8524.878793 | AC22: 6889.764397 | AD22: 1251.77589 | AE22: -13645.01072
A23: Yl | B23: =IMDIV(1,COMPLEX(B21,B22)) -> 0.0000200052625935841-0.0022657676296363i | C23: 0.0000177326179723825-0.00196717273331325i | D23: 0.0000158376382661183-0.00170640457782864i | E23: 0.0000145297874376537-0.00148321675092133i | F23: 0.0000133745249566158-0.00128763446690156i | G23: 0.000012439266178437-0.00111162500051586i | H23: 0.0000119493553794103-0.000958268577227696i | I23: 0.0000116240767983288-0.000824689858662113i | J23: 0.0000115869352150173-0.00070604034311672i | K23: 0.0000115130889643806-0.000597491669876101i | L23: 0.0000124185366036036-0.000501991224408328i | M23: 0.0000146545554273901-0.000421287739349752i | N23: 0.0000194350078970176-0.000358990332787253i | O23: 0.0000270900711414851-0.000304354309699771i | P23: 0.0000375713710593226-0.000260352974595149i | Q23: 0.0000465269359033077-0.000219939562778005i | R23: 0.0000583070613891512-0.000187603210858508i | S23: 0.0000615975572301139-0.000161576869866853i | T23: 0.0000633317263514952-0.000141888144898258i | U23: 0.0000654982487442511-0.000127869130744915i | V23: 0.0000669069636568982-0.000115339820329621i | W23: 0.0000667871071168159-0.000102743793708431i | X23: 0.0000654625583335683-0.0000907138940740566i | Y23: 0.0000633691802913203-0.0000794089281958927i | Z23: 0.0000604850114904931-0.0000694168104479727i | AA23: 0.0000580655283794407-0.0000605654200809628i | AB23: 0.0000580339826984557-0.0000501608316012413i | AC23: 0.0000599708155065758-0.0000317044110645554i | AD23: 0.000049190075961821-3.04044834673475E-06i | AE23: 0.0000238041642366392+0.0000087848095456875i
A24: Yc | B24: =COMPLEX(0,2*PI()*B18*1000000*$B$9*0.000000000001) -> 0.0000326725635973338i | C24: 0.0000375309200577934i | D24: 0.0000431117061319125i | E24: 0.0000495223459148435i | F24: 0.0000568862372879748i | G24: 0.0000653451271946677i | H24: 0.0000750618401155868i | I24: 0.0000862234122638251i | J24: 0.000099044691829687i | K24: 0.00011377247457595i | L24: 0.000130690254389336i | M24: 0.000150123680231174i | N24: 0.00017244682452765i | O24: 0.000198089383659374i | P24: 0.0002275449491519i | Q24: 0.000261380508778671i | R24: 0.000300247360462348i | S24: 0.0003448936490553i | T24: 0.000396178767318748i | U24: 0.000455089898303799i | V24: 0.000522761017557342i | W24: 0.000600494720924695i | X24: 0.000689787298110601i | Y24: 0.000792357534637497i | Z24: 0.000910179796607599i | AA24: 0.00104552203511468i | AB24: 0.00120098944184939i | AC24: 0.0013795745962212i | AD24: 0.00158471506927499i | AE24: 0.0018203595932152i
A25: Z | B25: =IMDIV(1,IMSUM(B23,B24)) -> 4.01139084810227+447.773033167979i | C25: 4.76192752518997+518.187132808573i | D25: 5.72418409948048+601.162524927347i | E25: 7.06808033025878+697.427079859939i | F25: 8.82853499013026+812.417924706153i | G25: 11.3615513561417+955.632136423159i | H25: 15.315819579761+1132.03052447052i | I25: 21.3102891696923+1353.82222501533i | J25: 31.4368625216846+1646.85816280732i | K25: 49.1766862419482+2066.14464372489i | L25: 89.9772484964869+2690.22355151661i | M25: 198.720109250987+3677.06490449173i | N25: 552.50447444114+5303.11711410184i | O25: 2252.60529912472+8836.18703913716i | P25: 15101.1884214509+13186.6407848676i | Q25: 11984.9676155539-10674.8571796792i | R25: 3624.16378917497-7001.56787755048i | S25: 1647.02430955766-4901.60982431913i | T25: 922.199770116806-3702.83216720649i | U25: 588.148517072233-2938.31381578561i | V25: 392.488551939286-2390.00766122484i | W25: 264.800702030644-1973.50657414662i | X25: 180.251080932587-1649.54794594667i | Y25: 123.692707590212-1391.63143815368i | Z25: 85.1253136591217-1183.27187424057i | AA25: 59.6454689096177-1011.75690291517i | AB25: 43.7077121251904-866.735027708129i | AC25: 32.9446523413251-740.445402920257i | AD25: 19.6437025857487-631.630369204077i | AE25: 7.11350117234372-546.611119133439i
A26: R | B26: =IMREAL(B25) -> 4.011390848 | C26: 4.761927525 | D26: 5.724184099 | E26: 7.06808033 | F26: 8.82853499 | G26: 11.36155136 | H26: 15.31581958 | I26: 21.31028917 | J26: 31.43686252 | K26: 49.17668624 | L26: 89.9772485 | M26: 198.7201093 | N26: 552.5044744 | O26: 2252.605299 | P26: 15101.18842 | Q26: 11984.96762 | R26: 3624.163789 | S26: 1647.02431 | T26: 922.1997701 | U26: 588.1485171 | V26: 392.4885519 | W26: 264.800702 | X26: 180.2510809 | Y26: 123.6927076 | Z26: 85.12531366 | AA26: 59.64546891 | AB26: 43.70771213 | AC26: 32.94465234 | AD26: 19.64370259 | AE26: 7.113501172
A27: X | B27: =IMAGINARY(B25) -> 447.7730332 | C27: 518.1871328 | D27: 601.1625249 | E27: 697.4270799 | F27: 812.4179247 | G27: 955.6321364 | H27: 1132.030524 | I27: 1353.822225 | J27: 1646.858163 | K27: 2066.144644 | L27: 2690.223552 | M27: 3677.064904 | N27: 5303.117114 | O27: 8836.187039 | P27: 13186.64078 | Q27: -10674.85718 | R27: -7001.567878 | S27: -4901.609824 | T27: -3702.832167 | U27: -2938.313816 | V27: -2390.007661 | W27: -1973.506574 | X27: -1649.547946 | Y27: -1391.631438 | Z27: -1183.271874 | AA27: -1011.756903 | AB27: -866.7350277 | AC27: -740.4454029 | AD27: -631.6303692 | AE27: -546.6111191
A28: |Z| | B28: =IMABS(B25) -> 447.7910009 | C28: 518.2090124 | D28: 601.1897767 | E28: 697.4628947 | F28: 812.4658931 | G28: 955.699673 | H28: 1132.134128 | I28: 1353.989935 | J28: 1647.158184 | K28: 2066.729793 | L28: 2691.727821 | M28: 3682.430718 | N28: 5331.820732 | O28: 9118.795536 | P28: 20048.27641 | Q28: 16049.67366 | R28: 7883.94038 | S28: 5170.92525 | T28: 3815.942672 | U28: 2996.599199 | V28: 2422.02062 | W28: 1991.19251 | X28: 1659.367011 | Y28: 1397.117728 | Z28: 1186.329907 | AA28: 1013.513499 | AB28: 867.8363742 | AC28: 741.1779441 | AD28: 631.9357549 | AE28: 546.6574041
A32: Module | B32: Version | C32: Date
A33: CubicSpline | B33: =CubicSpline_version("v") -> 1.02 | C33: =CubicSpline_version("d") -> 2008-04-06
A35: Copyright: Owen Duffy 2010. All rights reserved.

Sheet 28-053-31
A1: Calculate impedance of ferrite cored inductor
A3: Reference:
A4: A method for estimating the impedance of a ferrite cored toroidal inductor at RF
A6: Inputs:
A7: Al (nH for 1t) | B7: 708 | C7: Neosid 28-053-31
A8: N | B8: 6
A9: Cs (pF) | B9: 1.8
A11: Constants:
A12: Mix | B12: =Mix!B1 -> F14
A13: µ | B13: =Mix!B2 -> 220
A15: Calculated values:
A16: 2*pi*N^2*Al | B16: =2*PI()*$B$8^2*$B$7*0.000000001 -> 0.0001601458271
A18: f (MHz) | B18: 1.04 | C18: =B18*2^(1/5) -> 1.194646289 | D18: =C18*2^(1/5) -> 1.372288227 | E18: 1.576345229 | F18: 1.810745172 | G18: 2.08 | H18: 2.389292578 | I18: 2.744576454 | J18: 3.152690458 | K18: 3.621490343 | L18: 4.16 | M18: 4.778585157 | N18: 5.489152909 | O18: 6.305380917 | P18: 7.242980687 | Q18: 8.32 | R18: 9.557170314 | S18: 10.97830582 | T18: 12.61076183 | U18: 14.48596137 | V18: 16.64 | W18: 19.11434063 | X18: 21.95661164 | Y18: 25.22152367 | Z18: 28.97192275 | AA18: 33.28 | AB18: 38.22868125 | AC18: 43.91322327 | AD18: 50.44304733 | AE18: 57.94384549
A19: µ'' | B19: =csinterpolate(CSTableU2,'28-053-31'!B18*1000000) -> 1.912144504 | C19: =csinterpolate(CSTableU2,'28-053-31'!C18*1000000) -> 1.95743623 | D19: =csinterpolate(CSTableU2,'28-053-31'!D18*1000000) -> 2.022637433 | E19: =csinterpolate(CSTableU2,'28-053-31'!E18*1000000) -> 2.138116621 | F19: =csinterpolate(CSTableU2,'28-053-31'!F18*1000000) -> 2.273334663 | G19: =csinterpolate(CSTableU2,'28-053-31'!G18*1000000) -> 2.469646646 | H19: =csinterpolate(CSTableU2,'28-053-31'!H18*1000000) -> 2.779121326 | I19: =csinterpolate(CSTableU2,'28-053-31'!I18*1000000) -> 3.177532046 | J19: =csinterpolate(CSTableU2,'28-053-31'!J18*1000000) -> 3.761712879 | K19: =csinterpolate(CSTableU2,'28-053-31'!K18*1000000) -> 4.543117622 | L19: =csinterpolate(CSTableU2,'28-053-31'!L18*1000000) -> 6.042178053 | M19: =csinterpolate(CSTableU2,'28-053-31'!M18*1000000) -> 8.807747984 | N19: =csinterpolate(CSTableU2,'28-053-31'!N18*1000000) -> 13.98032437 | O19: =csinterpolate(CSTableU2,'28-053-31'!O18*1000000) -> 23.48481567 | P19: =csinterpolate(CSTableU2,'28-053-31'!P18*1000000) -> 38.25935403 | Q19: =csinterpolate(CSTableU2,'28-053-31'!Q18*1000000) -> 56.47237111 | R19: =csinterpolate(CSTableU2,'28-053-31'!R18*1000000) -> 80.67496552 | S19: =csinterpolate(CSTableU2,'28-053-31'!S18*1000000) -> 95.76610851 | T19: =csinterpolate(CSTableU2,'28-053-31'!T18*1000000) -> 106.1598743 | U19: =csinterpolate(CSTableU2,'28-053-31'!U18*1000000) -> 111.7984532 | V19: =csinterpolate(CSTableU2,'28-053-31'!V18*1000000) -> 115.4157617 | W19: =csinterpolate(CSTableU2,'28-053-31'!W18*1000000) -> 118.749054 | X19: =csinterpolate(CSTableU2,'28-053-31'!X18*1000000) -> 121.5887777 | Y19: =csinterpolate(CSTableU2,'28-053-31'!Y18*1000000) -> 124.2342219 | Z19: =csinterpolate(CSTableU2,'28-053-31'!Z18*1000000) -> 125.6886262 | AA19: =csinterpolate(CSTableU2,'28-053-31'!AA18*1000000) -> 126.4883788 | AB19: =csinterpolate(CSTableU2,'28-053-31'!AB18*1000000) -> 131.6712406 | AC19: =csinterpolate(CSTableU2,'28-053-31'!AC18*1000000) -> 151.4620054 | AD19: =csinterpolate(CSTableU2,'28-053-31'!AD18*1000000) -> 204.8988468 | AE19: =csinterpolate(CSTableU2,'28-053-31'!AE18*1000000) -> 325.6578398
A20: µ' | B20: =csinterpolate(CSTableU1,'28-053-31'!B18*1000000) -> 216.5667708 | C20: =csinterpolate(CSTableU1,'28-053-31'!C18*1000000) -> 217.1487135 | D20: =csinterpolate(CSTableU1,'28-053-31'!D18*1000000) -> 217.9262916 | E20: =csinterpolate(CSTableU1,'28-053-31'!E18*1000000) -> 218.2613063 | F20: =csinterpolate(CSTableU1,'28-053-31'!F18*1000000) -> 218.8656477 | G20: =csinterpolate(CSTableU1,'28-053-31'!G18*1000000) -> 220.6979829 | H20: =csinterpolate(CSTableU1,'28-053-31'!H18*1000000) -> 222.8693142 | I20: =csinterpolate(CSTableU1,'28-053-31'!I18*1000000) -> 225.4354044 | J20: =csinterpolate(CSTableU1,'28-053-31'!J18*1000000) -> 229.2168725 | K20: =csinterpolate(CSTableU1,'28-053-31'!K18*1000000) -> 235.7729488 | L20: =csinterpolate(CSTableU1,'28-053-31'!L18*1000000) -> 244.2413672 | M20: =csinterpolate(CSTableU1,'28-053-31'!M18*1000000) -> 253.2042855 | N20: =csinterpolate(CSTableU1,'28-053-31'!N18*1000000) -> 258.2351046 | O20: =csinterpolate(CSTableU1,'28-053-31'!O18*1000000) -> 263.8496158 | P20: =csinterpolate(CSTableU1,'28-053-31'!P18*1000000) -> 265.1203921 | Q20: =csinterpolate(CSTableU1,'28-053-31'!Q18*1000000) -> 266.953075 | R20: =csinterpolate(CSTableU1,'28-053-31'!R18*1000000) -> 259.5720348 | S20: =csinterpolate(CSTableU1,'28-053-31'!S18*1000000) -> 251.2045728 | T20: =csinterpolate(CSTableU1,'28-053-31'!T18*1000000) -> 237.8401552 | U20: =csinterpolate(CSTableU1,'28-053-31'!U18*1000000) -> 218.2588283 | V20: =csinterpolate(CSTableU1,'28-053-31'!V18*1000000) -> 198.9633438 | W20: =csinterpolate(CSTableU1,'28-053-31'!W18*1000000) -> 182.680892 | X20: =csinterpolate(CSTableU1,'28-053-31'!X18*1000000) -> 168.4900771 | Y20: =csinterpolate(CSTableU1,'28-053-31'!Y18*1000000) -> 155.6798804 | Z20: =csinterpolate(CSTableU1,'28-053-31'!Z18*1000000) -> 144.2490185 | AA20: =csinterpolate(CSTableU1,'28-053-31'!AA18*1000000) -> 131.9340754 | AB20: =csinterpolate(CSTableU1,'28-053-31'!AB18*1000000) -> 113.8081279 | AC20: =csinterpolate(CSTableU1,'28-053-31'!AC18*1000000) -> 80.07250926 | AD20: =csinterpolate(CSTableU1,'28-053-31'!AD18*1000000) -> 12.66483834 | AE20: =csinterpolate(CSTableU1,'28-053-31'!AE18*1000000) -> -120.1824215
A21: Rl | B21: =B19/$B$13*$B$16*B18*1000000 -> 1.447594735 | C21: 1.702236533 | D21: 2.020488226 | E21: 2.453441303 | F21: 2.99649568 | G21: 3.739306809 | H21: 4.83358975 | I21: 6.348311351 | J21: 8.63296385 | K21: 11.97661967 | L21: 18.29699611 | M21: 30.63777027 | N21: 55.86187681 | O21: 107.7932162 | P21: 201.7195108 | Q21: 342.0206241 | R21: 561.2560815 | S21: 765.3147975 | T21: 974.5287707 | U21: 1178.897546 | V21: 1398.013579 | W21: 1652.275357 | X21: 1943.353285 | Y21: 2280.896137 | Z21: 2650.734581 | AA21: 3064.269016 | AB21: 3664.149544 | AC21: 4841.634094 | AD21: 7523.739932 | AE21: 13736.04794
A22: Xl | B22: =B20/$B$13*$B$16*B18*1000000 -> 163.9525237 | C22: 188.8380665 | D22: 217.6947282 | E22: 250.4499982 | F22: 288.4880868 | G22: 334.1601405 | H22: 387.625694 | I22: 450.3917242 | J22: 526.0425337 | K22: 621.547398 | L22: 739.6146399 | M22: 880.7716509 | N22: 1031.84284 | O22: 1211.04628 | P22: 1397.826941 | Q22: 1616.781012 | R22: 1805.843761 | S22: 2007.50119 | T22: 2183.330337 | U22: 2301.505877 | V22: 2410.012744 | W22: 2541.8235 | X22: 2692.976696 | Y22: 2858.227245 | Z22: 3042.167562 | AA22: 3196.194806 | AB22: 3167.054538 | AC22: 2559.597635 | AD22: 465.0438567 | AE22: -5069.220824
A23: Yl | B23: =IMDIV(1,COMPLEX(B21,B22)) -> 0.0000538489112820948-0.00609885121494265i | C23: 0.0000477315490125253-0.00529511219846289i | D23: 0.0000426307614769139-0.00459319283078664i | E23: 0.0000391103706346165-0.00399242983484227i | F23: 0.0000360007075368228-0.00346597370804752i | G23: 0.0000334832366095429-0.0029922024643123i | H23: 0.0000321645254439428-0.00257940726137244i | I23: 0.0000312889609582135-0.00221984844370809i | J23: 0.0000311889855734737-0.00190047511849533i | K23: 0.0000309902108670457-0.00160829060715591i | L23: 0.0000334274380399967-0.00135122849705674i | M23: 0.0000394462132849556-0.00113399591704208i | N23: 0.0000523139354516116-0.00096630766484365i | O23: 0.0000729193546297814-0.000819241844223642i | P23: 0.000101132260446757-0.00070080180979478i | Q23: 0.000125238288273628-0.000592019522265798i | R23: 0.00015694729130279-0.000504978558041811i | S23: 0.000165804441654365-0.000434922485520841i | T23: 0.000170472369342319-0.000381925610367026i | U23: 0.000176304078452481-0.000344190107227574i | V23: 0.000180095968911205-0.000310464495188101i | W23: 0.000179773346593039-0.000276559300649496i | X23: 0.000176208009243217-0.000244177971231121i | Y23: 0.000170573185508734-0.000213747973035766i | Z23: 0.00016280976080227-0.000186851817106249i | AA23: 0.000156297147894236-0.000163026199603524i | AB23: 0.000156212235208449-0.000135019780824951i | AC23: 0.00016142568029895-0.0000853399454608424i | AD23: 0.000132406761672656-8.18408818755616E-06i | AE23: 0.0000640745564886655+0.0000236463994232964i
A24: Yc | B24: =COMPLEX(0,2*PI()*B18*1000000*$B$9*0.000000000001) -> 0.0000117621228950402i | C24: 0.0000135111312208056i | D24: 0.0000155202142074885i | E24: 0.0000178280445293437i | F24: 0.0000204790454236709i | G24: 0.0000235242457900804i | H24: 0.0000270222624416113i | I24: 0.000031040428414977i | J24: 0.0000356560890586873i | K24: 0.0000409580908473419i | L24: 0.0000470484915801608i | M24: 0.0000540445248832225i | N24: 0.000062080856829954i | O24: 0.0000713121781173747i | P24: 0.0000819161816946839i | Q24: 0.0000940969831603216i | R24: 0.000108089049766445i | S24: 0.000124161713659908i | T24: 0.000142624356234749i | U24: 0.000163832363389368i | V24: 0.000188193966320643i | W24: 0.00021617809953289i | X24: 0.000248323427319816i | Y24: 0.000285248712469499i | Z24: 0.000327664726778736i | AA24: 0.000376387932641287i | AB24: 0.000432356199065781i | AC24: 0.000496646854639633i | AD24: 0.000570497424938998i | AE24: 0.000655329453557472i
A25: Z | B25: =IMDIV(1,IMSUM(B23,B24)) -> 1.45319409529268+164.269280761213i | C25: 1.71095611501632+189.321063950873i | D25: 2.03421085219734+218.43267612038i | E25: 2.47549831215793+251.573172633423i | F25: 3.0322182841616+290.20240514171i | G25: 3.79879568249127+336.807403977606i | H25: 4.93646223494316+391.728215552773i | I25: 6.52960730226701+456.776331403447i | J25: 8.96615824509494+536.095105658515i | K25: 12.610505257825+637.777362098778i | L25: 19.6400596185408+766.26192621226i | M25: 33.7767513494191+924.733874425428i | N25: 63.7692629459368+1102.22785927328i | O25: 129.125706269144+1324.43501270612i | P25: 257.172262328033+1573.78285027655i | Q25: 475.086617884761+1888.84995421984i | R25: 861.619950541837+2178.87110795085i | S25: 1336.44960141889+2504.85515071988i | T25: 1974.75302248258+2772.06726641227i | U25: 2771.55186040063+2835.27667005825i | V25: 3800.72462237067+2580.38318384547i | W25: 4998.65474058022+1678.91838764455i | X25: 5671.97167364671-133.438369858487i | Y25: 4986.41671132902-2090.20240151692i | Z25: 3513.73106007625-3038.99896380801i | AA25: 2234.34764274075-3050.11506407398i | AB25: 1384.72265230534-2635.69926609143i | AC25: 826.841866898652-2106.76375669527i | AD25: 396.750723523894-1684.945847062i | AE25: 137.761043239692-1459.80599737334i
A26: R | B26: =IMREAL(B25) -> 1.453194095 | C26: 1.710956115 | D26: 2.034210852 | E26: 2.475498312 | F26: 3.032218284 | G26: 3.798795682 | H26: 4.936462235 | I26: 6.529607302 | J26: 8.966158245 | K26: 12.61050526 | L26: 19.64005962 | M26: 33.77675135 | N26: 63.76926295 | O26: 129.1257063 | P26: 257.1722623 | Q26: 475.0866179 | R26: 861.6199505 | S26: 1336.449601 | T26: 1974.753022 | U26: 2771.55186 | V26: 3800.724622 | W26: 4998.654741 | X26: 5671.971674 | Y26: 4986.416711 | Z26: 3513.73106 | AA26: 2234.347643 | AB26: 1384.722652 | AC26: 826.8418669 | AD26: 396.7507235 | AE26: 137.7610432
A27: X | B27: =IMAGINARY(B25) -> 164.2692808 | C27: 189.321064 | D27: 218.4326761 | E27: 251.5731726 | F27: 290.2024051 | G27: 336.807404 | H27: 391.7282156 | I27: 456.7763314 | J27: 536.0951057 | K27: 637.7773621 | L27: 766.2619262 | M27: 924.7338744 | N27: 1102.227859 | O27: 1324.435013 | P27: 1573.78285 | Q27: 1888.849954 | R27: 2178.871108 | S27: 2504.855151 | T27: 2772.067266 | U27: 2835.27667 | V27: 2580.383184 | W27: 1678.918388 | X27: -133.4383699 | Y27: -2090.202402 | Z27: -3038.998964 | AA27: -3050.115064 | AB27: -2635.699266 | AC27: -2106.763757 | AD27: -1684.945847 | AE27: -1459.805997
A28: |Z| | B28: =IMABS(B25) -> 164.2757084 | C28: 189.328795 | D28: 218.442148 | E28: 251.5853519 | F28: 290.218246 | G28: 336.8288263 | H28: 391.7593184 | I28: 456.8229993 | J28: 536.1700796 | K28: 637.902021 | L28: 766.5135821 | M28: 925.3505322 | N28: 1104.071 | O28: 1330.714677 | P28: 1594.656713 | Q28: 1947.681043 | R28: 2343.046787 | S28: 2839.083807 | T28: 3403.528526 | U28: 3964.882534 | V28: 4593.896498 | W28: 5273.074641 | X28: 5673.541087 | Y28: 5406.782564 | Z28: 4645.623819 | AA28: 3780.94053 | AB28: 2977.308759 | AC28: 2263.21033 | AD28: 1731.02676 | AE28: 1466.291804
A32: Module | B32: Version | C32: Date
A33: CubicSpline | B33: =CubicSpline_version("v") -> 1.02 | C33: =CubicSpline_version("d") -> 2008-04-06
A35: Copyright: Owen Duffy 2010. All rights reserved.

Sheet 28-042-31
A1: Calculate impedance of ferrite cored inductor
A3: Reference:
A4: A method for estimating the impedance of a ferrite cored toroidal inductor at RF
A6: Inputs:
A7: Al (nH for 1t) | B7: 226 | C7: Neosid 28-042-31
A8: N | B8: 10
A9: Cs (pF) | B9: 2.2
A11: Constants:
A12: Mix | B12: =Mix!B1 -> F14
A13: µ | B13: =Mix!B2 -> 220
A15: Calculated values:
A16: 2*pi*N^2*Al | B16: =2*PI()*$B$8^2*$B$7*0.000000001 -> 0.0001419999879
A18: f (MHz) | B18: 1.04 | C18: =B18*2^(1/5) -> 1.194646289 | D18: =C18*2^(1/5) -> 1.372288227 | E18: 1.576345229 | F18: 1.810745172 | G18: 2.08 | H18: 2.389292578 | I18: 2.744576454 | J18: 3.152690458 | K18: 3.621490343 | L18: 4.16 | M18: 4.778585157 | N18: 5.489152909 | O18: 6.305380917 | P18: 7.242980687 | Q18: 8.32 | R18: 9.557170314 | S18: 10.97830582 | T18: 12.61076183 | U18: 14.48596137 | V18: 16.64 | W18: 19.11434063 | X18: 21.95661164 | Y18: 25.22152367 | Z18: 28.97192275 | AA18: 33.28 | AB18: 38.22868125 | AC18: 43.91322327 | AD18: 50.44304733 | AE18: 57.94384549
A19: µ'' | B19: =csinterpolate(CSTableU2,'28-042-31'!B18*1000000) -> 1.912144504 | C19: =csinterpolate(CSTableU2,'28-042-31'!C18*1000000) -> 1.95743623 | D19: =csinterpolate(CSTableU2,'28-042-31'!D18*1000000) -> 2.022637433 | E19: =csinterpolate(CSTableU2,'28-042-31'!E18*1000000) -> 2.138116621 | F19: =csinterpolate(CSTableU2,'28-042-31'!F18*1000000) -> 2.273334663 | G19: =csinterpolate(CSTableU2,'28-042-31'!G18*1000000) -> 2.469646646 | H19: =csinterpolate(CSTableU2,'28-042-31'!H18*1000000) -> 2.779121326 | I19: =csinterpolate(CSTableU2,'28-042-31'!I18*1000000) -> 3.177532046 | J19: =csinterpolate(CSTableU2,'28-042-31'!J18*1000000) -> 3.761712879 | K19: =csinterpolate(CSTableU2,'28-042-31'!K18*1000000) -> 4.543117622 | L19: =csinterpolate(CSTableU2,'28-042-31'!L18*1000000) -> 6.042178053 | M19: =csinterpolate(CSTableU2,'28-042-31'!M18*1000000) -> 8.807747984 | N19: =csinterpolate(CSTableU2,'28-042-31'!N18*1000000) -> 13.98032437 | O19: =csinterpolate(CSTableU2,'28-042-31'!O18*1000000) -> 23.48481567 | P19: =csinterpolate(CSTableU2,'28-042-31'!P18*1000000) -> 38.25935403 | Q19: =csinterpolate(CSTableU2,'28-042-31'!Q18*1000000) -> 56.47237111 | R19: =csinterpolate(CSTableU2,'28-042-31'!R18*1000000) -> 80.67496552 | S19: =csinterpolate(CSTableU2,'28-042-31'!S18*1000000) -> 95.76610851 | T19: =csinterpolate(CSTableU2,'28-042-31'!T18*1000000) -> 106.1598743 | U19: =csinterpolate(CSTableU2,'28-042-31'!U18*1000000) -> 111.7984532 | V19: =csinterpolate(CSTableU2,'28-042-31'!V18*1000000) -> 115.4157617 | W19: =csinterpolate(CSTableU2,'28-042-31'!W18*1000000) -> 118.749054 | X19: =csinterpolate(CSTableU2,'28-042-31'!X18*1000000) -> 121.5887777 | Y19: =csinterpolate(CSTableU2,'28-042-31'!Y18*1000000) -> 124.2342219 | Z19: =csinterpolate(CSTableU2,'28-042-31'!Z18*1000000) -> 125.6886262 | AA19: =csinterpolate(CSTableU2,'28-042-31'!AA18*1000000) -> 126.4883788 | AB19: =csinterpolate(CSTableU2,'28-042-31'!AB18*1000000) -> 131.6712406 | AC19: =csinterpolate(CSTableU2,'28-042-31'!AC18*1000000) -> 151.4620054 | AD19: =csinterpolate(CSTableU2,'28-042-31'!AD18*1000000) -> 204.8988468 | AE19: =csinterpolate(CSTableU2,'28-042-31'!AE18*1000000) -> 325.6578398
A20: µ' | B20: =csinterpolate(CSTableU1,'28-042-31'!B18*1000000) -> 216.5667708 | C20: =csinterpolate(CSTableU1,'28-042-31'!C18*1000000) -> 217.1487135 | D20: =csinterpolate(CSTableU1,'28-042-31'!D18*1000000) -> 217.9262916 | E20: =csinterpolate(CSTableU1,'28-042-31'!E18*1000000) -> 218.2613063 | F20: =csinterpolate(CSTableU1,'28-042-31'!F18*1000000) -> 218.8656477 | G20: =csinterpolate(CSTableU1,'28-042-31'!G18*1000000) -> 220.6979829 | H20: =csinterpolate(CSTableU1,'28-042-31'!H18*1000000) -> 222.8693142 | I20: =csinterpolate(CSTableU1,'28-042-31'!I18*1000000) -> 225.4354044 | J20: =csinterpolate(CSTableU1,'28-042-31'!J18*1000000) -> 229.2168725 | K20: =csinterpolate(CSTableU1,'28-042-31'!K18*1000000) -> 235.7729488 | L20: =csinterpolate(CSTableU1,'28-042-31'!L18*1000000) -> 244.2413672 | M20: =csinterpolate(CSTableU1,'28-042-31'!M18*1000000) -> 253.2042855 | N20: =csinterpolate(CSTableU1,'28-042-31'!N18*1000000) -> 258.2351046 | O20: =csinterpolate(CSTableU1,'28-042-31'!O18*1000000) -> 263.8496158 | P20: =csinterpolate(CSTableU1,'28-042-31'!P18*1000000) -> 265.1203921 | Q20: =csinterpolate(CSTableU1,'28-042-31'!Q18*1000000) -> 266.953075 | R20: =csinterpolate(CSTableU1,'28-042-31'!R18*1000000) -> 259.5720348 | S20: =csinterpolate(CSTableU1,'28-042-31'!S18*1000000) -> 251.2045728 | T20: =csinterpolate(CSTableU1,'28-042-31'!T18*1000000) -> 237.8401552 | U20: =csinterpolate(CSTableU1,'28-042-31'!U18*1000000) -> 218.2588283 | V20: =csinterpolate(CSTableU1,'28-042-31'!V18*1000000) -> 198.9633438 | W20: =csinterpolate(CSTableU1,'28-042-31'!W18*1000000) -> 182.680892 | X20: =csinterpolate(CSTableU1,'28-042-31'!X18*1000000) -> 168.4900771 | Y20: =csinterpolate(CSTableU1,'28-042-31'!Y18*1000000) -> 155.6798804 | Z20: =csinterpolate(CSTableU1,'28-042-31'!Z18*1000000) -> 144.2490185 | AA20: =csinterpolate(CSTableU1,'28-042-31'!AA18*1000000) -> 131.9340754 | AB20: =csinterpolate(CSTableU1,'28-042-31'!AB18*1000000) -> 113.8081279 | AC20: =csinterpolate(CSTableU1,'28-042-31'!AC18*1000000) -> 80.07250926 | AD20: =csinterpolate(CSTableU1,'28-042-31'!AD18*1000000) -> 12.66483834 | AE20: =csinterpolate(CSTableU1,'28-042-31'!AE18*1000000) -> -120.1824215
A21: Rl | B21: =B19/$B$13*$B$16*B18*1000000 -> 1.283570347 | C21: 1.509359135 | D21: 1.791550295 | E21: 2.175446227 | F21: 2.656968077 | G21: 3.315612598 | H21: 4.285904282 | I21: 5.62899547 | J21: 7.654778053 | K21: 10.61957018 | L21: 16.22379598 | M21: 27.16625895 | N21: 49.53226679 | O21: 95.57935833 | P21: 178.8630314 | Q21: 303.2668748 | R21: 497.661152 | S21: 678.5983374 | T21: 864.1066469 | U21: 1045.318759 | V21: 1239.607144 | W21: 1465.058971 | X21: 1723.155377 | Y21: 2022.451848 | Z21: 2350.384555 | AA21: 2717.062138 | AB21: 3248.971269 | AC21: 4293.037136 | AD21: 6671.238326 | AE21: 12179.64075
A22: Xl | B22: =B20/$B$13*$B$16*B18*1000000 -> 145.3753545 | C22: 167.4411607 | D22: 193.0281253 | E22: 222.0719538 | F22: 255.8000142 | G22: 296.2970486 | H22: 343.7045153 | I22: 399.358638 | J22: 466.4375888 | K22: 551.1209665 | L22: 655.810219 | M22: 780.9729799 | N22: 914.9265611 | O22: 1073.824778 | P22: 1239.441653 | Q22: 1433.586428 | R22: 1601.226812 | S22: 1780.034797 | T22: 1935.941055 | U22: 2040.726335 | V22: 2136.938481 | W22: 2253.813995 | X22: 2387.840291 | Y22: 2534.366593 | Z22: 2697.46496 | AA22: 2834.039651 | AB22: 2808.201214 | AC22: 2269.574174 | AD22: 412.3505635 | AE22: -4494.836418
A23: Yl | B23: =IMDIV(1,COMPLEX(B21,B22)) -> 0.0000607301349892928-0.00687820883922379i | C23: 0.000053831049612002-0.00597176193426646i | D23: 0.0000480784446249371-0.00518014596774732i | E23: 0.0000441081914484559-0.00450261290400265i | F23: 0.0000406011519335636-0.00390888220666881i | G23: 0.0000377619794116828-0.00337456886771646i | H23: 0.0000362747532971333-0.00290902355211773i | I23: 0.0000352873025178295-0.00250351757226689i | J23: 0.0000351745515175529-0.0021433322929296i | K23: 0.0000349503758663389-0.0018138102210261i | L23: 0.0000376990504762583-0.00152389875809656i | M23: 0.0000444869506286262-0.00127890654573312i | N23: 0.0000589990082650745-0.0010897898124573i | O23: 0.0000822375447258349-0.000923930802016468i | P23: 0.000114055710365795-0.000790355598586256i | Q23: 0.000141242189890187-0.000667672282456223i | R23: 0.00017700321065157-0.000569508561388036i | S23: 0.00018699219508347-0.000490500190750228i | T23: 0.000192256626097213-0.00043073097155021i | U23: 0.000198833555380391-0.000388173338629043i | V23: 0.000203110002460567-0.000350138011210367i | W23: 0.000202746153007229-0.000311900152874086i | X23: 0.000198725209716422-0.000275380890740655i | Y23: 0.000192370325320646-0.000241062315784761i | Z23: 0.000183614831120719-0.000210729164354162i | AA23: 0.000176269986970279-0.000183858928119231i | AB23: 0.000176174223495263-0.000152273636002937i | AC23: 0.000182053882276976-0.0000962453331816793i | AD23: 0.000149326705376666-9.22991326214298E-06i | AE23: 0.0000722624909638544+0.0000266681163053532i
A24: Yc | B24: =COMPLEX(0,2*PI()*B18*1000000*$B$9*0.000000000001) -> 0.0000143759279828269i | C24: 0.0000165136048254291i | D24: 0.0000189691506980415i | E24: 0.0000217898322025311i | F24: 0.0000250299444067089i | G24: 0.0000287518559656538i | H24: 0.0000330272096508582i | I24: 0.000037938301396083i | J24: 0.0000435796644050623i | K24: 0.0000500598888134179i | L24: 0.0000575037119313076i | M24: 0.0000660544193017165i | N24: 0.0000758766027921661i | O24: 0.0000871593288101246i | P24: 0.000100119777626836i | Q24: 0.000115007423862615i | R24: 0.000132108838603433i | S24: 0.000151753205584332i | T24: 0.000174318657620249i | U24: 0.000200239555253672i | V24: 0.000230014847725231i | W24: 0.000264217677206866i | X24: 0.000303506411168664i | Y24: 0.000348637315240499i | Z24: 0.000400479110507344i | AA24: 0.000460029695450461i | AB24: 0.000528435354413732i | AC24: 0.000607012822337329i | AD24: 0.000697274630480998i | AE24: 0.000800958221014688i
A25: Z | B25: =IMDIV(1,IMSUM(B23,B24)) -> 1.28895229392826+145.679787763425i | C25: 1.5177408103684+167.905390859325i | D25: 1.80474251271722+193.737449080209i | E25: 2.19665360862876+223.15166065693i | F25: 2.69132096432361+257.448188486514i | G25: 3.37283475009756+298.842594072529i | H25: 4.38489021116946+347.650281895611i | I25: 5.80352115586953+405.501141741912i | J25: 7.97573005236674+476.112968590433i | K25: 11.2307079017031+566.751123603504i | L25: 17.5202983132839+681.494051690155i | M25: 30.2018137766956+823.395030307601i | N25: 57.1972447388299+982.949437668412i | O25: 116.327323683328+1183.63682107925i | P25: 233.035843953335+1410.27298456369i | Q25: 434.073400926305+1698.48056681009i | R25: 794.988909268351+1964.52893284129i | S25: 1248.98269691382+2262.60311514642i | T25: 1871.84150846342+2496.4716287727i | U25: 2656.28888803363+2510.67491858243i | V25: 3647.59620820552+2157.25858075897i | W25: 4673.7649643591+1099.19069181753i | X25: 4933.25779879019-698.202523950047i | Y25: 3959.97085011921-2214.4468557521i | Z25: 2633.62427084514-2721.62145361791i | AA25: 1642.14352776237-2572.82618513277i | AB25: 1021.09269522071-2180.20534031905i | AC25: 619.173936456334-1737.14459103528i | AD25: 301.241680579401-1388.01526763728i | AE25: 104.699838940314-1199.13309193166i
A26: R | B26: =IMREAL(B25) -> 1.288952294 | C26: 1.51774081 | D26: 1.804742513 | E26: 2.196653609 | F26: 2.691320964 | G26: 3.37283475 | H26: 4.384890211 | I26: 5.803521156 | J26: 7.975730052 | K26: 11.2307079 | L26: 17.52029831 | M26: 30.20181378 | N26: 57.19724474 | O26: 116.3273237 | P26: 233.035844 | Q26: 434.0734009 | R26: 794.9889093 | S26: 1248.982697 | T26: 1871.841508 | U26: 2656.288888 | V26: 3647.596208 | W26: 4673.764964 | X26: 4933.257799 | Y26: 3959.97085 | Z26: 2633.624271 | AA26: 1642.143528 | AB26: 1021.092695 | AC26: 619.1739365 | AD26: 301.2416806 | AE26: 104.6998389
A27: X | B27: =IMAGINARY(B25) -> 145.6797878 | C27: 167.9053909 | D27: 193.7374491 | E27: 223.1516607 | F27: 257.4481885 | G27: 298.8425941 | H27: 347.6502819 | I27: 405.5011417 | J27: 476.1129686 | K27: 566.7511236 | L27: 681.4940517 | M27: 823.3950303 | N27: 982.9494377 | O27: 1183.636821 | P27: 1410.272985 | Q27: 1698.480567 | R27: 1964.528933 | S27: 2262.603115 | T27: 2496.471629 | U27: 2510.674919 | V27: 2157.258581 | W27: 1099.190692 | X27: -698.202524 | Y27: -2214.446856 | Z27: -2721.621454 | AA27: -2572.826185 | AB27: -2180.20534 | AC27: -1737.144591 | AD27: -1388.015268 | AE27: -1199.133092
A28: |Z| | B28: =IMABS(B25) -> 145.6854899 | C28: 167.9122503 | D28: 193.7458549 | E28: 223.1624721 | F28: 257.4622554 | G28: 298.8616269 | H28: 347.677934 | I28: 405.5426695 | J28: 476.1797677 | K28: 566.8623862 | L28: 681.7192262 | M28: 823.9487396 | N28: 984.6121682 | O28: 1189.339384 | P28: 1429.396934 | Q28: 1753.070436 | R28: 2119.287921 | S28: 2584.440101 | T28: 3120.282235 | U28: 3655.045718 | V28: 4237.773317 | W28: 4801.280987 | X28: 4982.421025 | Y28: 4537.085409 | Z28: 3787.241758 | AA28: 3052.22377 | AB28: 2407.47287 | AC28: 1844.192965 | AD28: 1420.32846 | AE28: 1203.695239
A32: Module | B32: Version | C32: Date
A33: CubicSpline | B33: =CubicSpline_version("v") -> 1.02 | C33: =CubicSpline_version("d") -> 2008-04-06
A35: Copyright: Owen Duffy 2010. All rights reserved.

Sheet 42-001-31
A1: Calculate impedance of ferrite cored inductor
A3: Reference:
A4: A method for estimating the impedance of a ferrite cored toroidal inductor at RF
A6: Inputs:
A7: Al (nH for 1t) | B7: 600 | C7: Neosid 42-001-31
A8: N | B8: 6
A9: Cs (pF) | B9: 1.8
A11: Constants:
A12: Mix | B12: =Mix!B1 -> F14
A13: µ | B13: =Mix!B2 -> 220
A15: Calculated values:
A16: 2*pi*N^2*Al | B16: =2*PI()*$B$8^2*$B$7*0.000000001 -> 0.0001357168026
A18: f (MHz) | B18: 1.04 | C18: =B18*2^(1/5) -> 1.194646289 | D18: =C18*2^(1/5) -> 1.372288227 | E18: 1.576345229 | F18: 1.810745172 | G18: 2.08 | H18: 2.389292578 | I18: 2.744576454 | J18: 3.152690458 | K18: 3.621490343 | L18: 4.16 | M18: 4.778585157 | N18: 5.489152909 | O18: 6.305380917 | P18: 7.242980687 | Q18: 8.32 | R18: 9.557170314 | S18: 10.97830582 | T18: 12.61076183 | U18: 14.48596137 | V18: 16.64 | W18: 19.11434063 | X18: 21.95661164 | Y18: 25.22152367 | Z18: 28.97192275 | AA18: 33.28 | AB18: 38.22868125 | AC18: 43.91322327 | AD18: 50.44304733 | AE18: 57.94384549
A19: µ'' | B19: =csinterpolate(CSTableU2,'42-001-31'!B18*1000000) -> 1.912144504 | C19: =csinterpolate(CSTableU2,'42-001-31'!C18*1000000) -> 1.95743623 | D19: =csinterpolate(CSTableU2,'42-001-31'!D18*1000000) -> 2.022637433 | E19: =csinterpolate(CSTableU2,'42-001-31'!E18*1000000) -> 2.138116621 | F19: =csinterpolate(CSTableU2,'42-001-31'!F18*1000000) -> 2.273334663 | G19: =csinterpolate(CSTableU2,'42-001-31'!G18*1000000) -> 2.469646646 | H19: =csinterpolate(CSTableU2,'42-001-31'!H18*1000000) -> 2.779121326 | I19: =csinterpolate(CSTableU2,'42-001-31'!I18*1000000) -> 3.177532046 | J19: =csinterpolate(CSTableU2,'42-001-31'!J18*1000000) -> 3.761712879 | K19: =csinterpolate(CSTableU2,'42-001-31'!K18*1000000) -> 4.543117622 | L19: =csinterpolate(CSTableU2,'42-001-31'!L18*1000000) -> 6.042178053 | M19: =csinterpolate(CSTableU2,'42-001-31'!M18*1000000) -> 8.807747984 | N19: =csinterpolate(CSTableU2,'42-001-31'!N18*1000000) -> 13.98032437 | O19: =csinterpolate(CSTableU2,'42-001-31'!O18*1000000) -> 23.48481567 | P19: =csinterpolate(CSTableU2,'42-001-31'!P18*1000000) -> 38.25935403 | Q19: =csinterpolate(CSTableU2,'42-001-31'!Q18*1000000) -> 56.47237111 | R19: =csinterpolate(CSTableU2,'42-001-31'!R18*1000000) -> 80.67496552 | S19: =csinterpolate(CSTableU2,'42-001-31'!S18*1000000) -> 95.76610851 | T19: =csinterpolate(CSTableU2,'42-001-31'!T18*1000000) -> 106.1598743 | U19: =csinterpolate(CSTableU2,'42-001-31'!U18*1000000) -> 111.7984532 | V19: =csinterpolate(CSTableU2,'42-001-31'!V18*1000000) -> 115.4157617 | W19: =csinterpolate(CSTableU2,'42-001-31'!W18*1000000) -> 118.749054 | X19: =csinterpolate(CSTableU2,'42-001-31'!X18*1000000) -> 121.5887777 | Y19: =csinterpolate(CSTableU2,'42-001-31'!Y18*1000000) -> 124.2342219 | Z19: =csinterpolate(CSTableU2,'42-001-31'!Z18*1000000) -> 125.6886262 | AA19: =csinterpolate(CSTableU2,'42-001-31'!AA18*1000000) -> 126.4883788 | AB19: =csinterpolate(CSTableU2,'42-001-31'!AB18*1000000) -> 131.6712406 | AC19: =csinterpolate(CSTableU2,'42-001-31'!AC18*1000000) -> 151.4620054 | AD19: =csinterpolate(CSTableU2,'42-001-31'!AD18*1000000) -> 204.8988468 | AE19: =csinterpolate(CSTableU2,'42-001-31'!AE18*1000000) -> 325.6578398
A20: µ' | B20: =csinterpolate(CSTableU1,'42-001-31'!B18*1000000) -> 216.5667708 | C20: =csinterpolate(CSTableU1,'42-001-31'!C18*1000000) -> 217.1487135 | D20: =csinterpolate(CSTableU1,'42-001-31'!D18*1000000) -> 217.9262916 | E20: =csinterpolate(CSTableU1,'42-001-31'!E18*1000000) -> 218.2613063 | F20: =csinterpolate(CSTableU1,'42-001-31'!F18*1000000) -> 218.8656477 | G20: =csinterpolate(CSTableU1,'42-001-31'!G18*1000000) -> 220.6979829 | H20: =csinterpolate(CSTableU1,'42-001-31'!H18*1000000) -> 222.8693142 | I20: =csinterpolate(CSTableU1,'42-001-31'!I18*1000000) -> 225.4354044 | J20: =csinterpolate(CSTableU1,'42-001-31'!J18*1000000) -> 229.2168725 | K20: =csinterpolate(CSTableU1,'42-001-31'!K18*1000000) -> 235.7729488 | L20: =csinterpolate(CSTableU1,'42-001-31'!L18*1000000) -> 244.2413672 | M20: =csinterpolate(CSTableU1,'42-001-31'!M18*1000000) -> 253.2042855 | N20: =csinterpolate(CSTableU1,'42-001-31'!N18*1000000) -> 258.2351046 | O20: =csinterpolate(CSTableU1,'42-001-31'!O18*1000000) -> 263.8496158 | P20: =csinterpolate(CSTableU1,'42-001-31'!P18*1000000) -> 265.1203921 | Q20: =csinterpolate(CSTableU1,'42-001-31'!Q18*1000000) -> 266.953075 | R20: =csinterpolate(CSTableU1,'42-001-31'!R18*1000000) -> 259.5720348 | S20: =csinterpolate(CSTableU1,'42-001-31'!S18*1000000) -> 251.2045728 | T20: =csinterpolate(CSTableU1,'42-001-31'!T18*1000000) -> 237.8401552 | U20: =csinterpolate(CSTableU1,'42-001-31'!U18*1000000) -> 218.2588283 | V20: =csinterpolate(CSTableU1,'42-001-31'!V18*1000000) -> 198.9633438 | W20: =csinterpolate(CSTableU1,'42-001-31'!W18*1000000) -> 182.680892 | X20: =csinterpolate(CSTableU1,'42-001-31'!X18*1000000) -> 168.4900771 | Y20: =csinterpolate(CSTableU1,'42-001-31'!Y18*1000000) -> 155.6798804 | Z20: =csinterpolate(CSTableU1,'42-001-31'!Z18*1000000) -> 144.2490185 | AA20: =csinterpolate(CSTableU1,'42-001-31'!AA18*1000000) -> 131.9340754 | AB20: =csinterpolate(CSTableU1,'42-001-31'!AB18*1000000) -> 113.8081279 | AC20: =csinterpolate(CSTableU1,'42-001-31'!AC18*1000000) -> 80.07250926 | AD20: =csinterpolate(CSTableU1,'42-001-31'!AD18*1000000) -> 12.66483834 | AE20: =csinterpolate(CSTableU1,'42-001-31'!AE18*1000000) -> -120.1824215
A21: Rl | B21: =B19/$B$13*$B$16*B18*1000000 -> 1.226775199 | C21: 1.442573333 | D21: 1.712278158 | E21: 2.079187545 | F21: 2.539403118 | G21: 3.168904076 | H21: 4.0962625 | I21: 5.379924874 | J21: 7.316071059 | K21: 10.14967769 | L21: 15.5059289 | M21: 25.9642121 | N21: 47.34057357 | O21: 91.35018318 | P21: 170.948738 | Q21: 289.8479865 | R21: 475.6407471 | S21: 648.5718623 | T21: 825.8718395 | U21: 999.0657168 | V21: 1184.757271 | W21: 1400.233353 | X21: 1646.909564 | Y21: 1932.962828 | Z21: 2246.385238 | AA21: 2596.838149 | AB21: 3105.211478 | AC21: 4103.079741 | AD21: 6376.05079 | AE21: 11640.71859
A22: Xl | B22: =B20/$B$13*$B$16*B18*1000000 -> 138.9428167 | C22: 160.0322598 | D22: 184.4870578 | E22: 212.2457612 | F22: 244.4814295 | G22: 283.1865598 | H22: 328.4963509 | I22: 381.6879018 | J22: 445.7987574 | K22: 526.735083 | L22: 626.7920677 | M22: 746.4166533 | N22: 874.4430849 | O22: 1026.310407 | P22: 1184.599102 | Q22: 1370.1534 | R22: 1530.376068 | S22: 1701.272195 | T22: 1850.279946 | U22: 1950.428709 | V22: 2042.383681 | W22: 2154.087712 | X22: 2282.183641 | Y22: 2422.226479 | Z22: 2578.108104 | AA22: 2708.639666 | AB22: 2683.944524 | AC22: 2169.150538 | AD22: 394.1049633 | AE22: -4295.949851
A23: Yl | B23: =IMDIV(1,COMPLEX(B21,B22)) -> 0.0000635417153128713-0.00719664443363231i | C23: 0.00005632322783478-0.00624823239418621i | D23: 0.0000503042985427579-0.00541996754032821i | E23: 0.0000461502373488474-0.00471106720511388i | F23: 0.0000424808348934509-0.00408984897549608i | G23: 0.0000395102191992607-0.00353079890788851i | H23: 0.0000379541400238524-0.00304370056841948i | I23: 0.0000369209739306919-0.00261942116357554i | J23: 0.000036803002976699-0.00224256063982449i | K23: 0.0000365684488231137-0.00189778291644397i | L23: 0.0000394443768871961-0.00159444962652695i | M23: 0.0000465465316762477-0.00133811518210965i | N23: 0.0000617304438329021-0.00114024304451551i | O23: 0.0000860448384631416-0.000966705376183894i | P23: 0.000119336067327174-0.000826946135557844i | Q23: 0.00014778118016288-0.000698583036273638i | R23: 0.000185197803737291-0.000595874698489334i | S23: 0.00019564924115215-0.000513208532914592i | T23: 0.000201157395823936-0.00045067222023309i | U23: 0.000208038812573928-0.000406144326528536i | V23: 0.000212513243315222-0.000366348104321959i | W23: 0.000212132548979786-0.000326339974766405i | X23: 0.000207925450906996-0.000288130006052723i | Y23: 0.000201276358900306-0.000252222608182204i | Z23: 0.000192115517746678-0.000220485144185373i | AA23: 0.000184430634515198-0.000192370915532158i | AB23: 0.00018433043754597-0.000159323341373443i | AC23: 0.000190482302752761-0.000100701135643794i | AD23: 0.000156239978773734-9.65722406131628E-06i | AE23: 0.0000756079766566254+0.0000279027513194899i
A24: Yc | B24: =COMPLEX(0,2*PI()*B18*1000000*$B$9*0.000000000001) -> 0.0000117621228950402i | C24: 0.0000135111312208056i | D24: 0.0000155202142074885i | E24: 0.0000178280445293437i | F24: 0.0000204790454236709i | G24: 0.0000235242457900804i | H24: 0.0000270222624416113i | I24: 0.000031040428414977i | J24: 0.0000356560890586873i | K24: 0.0000409580908473419i | L24: 0.0000470484915801608i | M24: 0.0000540445248832225i | N24: 0.000062080856829954i | O24: 0.0000713121781173747i | P24: 0.0000819161816946839i | Q24: 0.0000940969831603216i | R24: 0.000108089049766445i | S24: 0.000124161713659908i | T24: 0.000142624356234749i | U24: 0.000163832363389368i | V24: 0.000188193966320643i | W24: 0.00021617809953289i | X24: 0.000248323427319816i | Y24: 0.000285248712469499i | Z24: 0.000327664726778736i | AA24: 0.000376387932641287i | AB24: 0.000432356199065781i | AC24: 0.000496646854639633i | AD24: 0.000570497424938998i | AE24: 0.000655329453557472i
A25: Z | B25: =IMDIV(1,IMSUM(B23,B24)) -> 1.23079479477806+139.170239670208i | C25: 1.44883193621785+160.37900572209i | D25: 1.72212589040395+185.016766623353i | E25: 2.09501229196964+213.051856185599i | F25: 2.56502365804292+245.711511323743i | G25: 3.211550629168+285.085488666131i | H25: 4.16996505101143+331.437969564493i | I25: 5.50970664633946+386.263335483575i | J25: 7.55432032652879+452.997379510423i | K25: 10.6022065146624+538.344963926505i | L25: 16.4625525669049+645.82519832932i | M25: 28.1928637143813+777.751375561546i | N25: 52.9309692248103+924.473663760075i | O25: 106.342061281414+1106.60860128803i | P25: 209.614997967733+1308.65257891203i | Q25: 381.624219858916+1561.00065096725i | R25: 680.291364764629+1791.79427609743i | S25: 1031.70909706843+2051.54459197955i | T25: 1486.1161971793+2275.80456745974i | U25: 2039.69148694228+2375.71846466678i | V25: 2763.47334617457+2316.67544194917i | W25: 3712.77442534204+1928.06900676845i | X25: 4639.37495800412+888.191627007093i | Y25: 4838.03718502145-793.841469963549i | Z25: 3969.67047708502-2214.64476038935i | AA25: 2717.13316321206-2711.03952495144i | AB25: 1698.51213390619-2515.86025574243i | AC25: 986.665991391241-2050.93160742191i | AD25: 460.949260299606-1654.62692564261i | AE25: 160.009156701207-1445.92427634935i
A26: R | B26: =IMREAL(B25) -> 1.230794795 | C26: 1.448831936 | D26: 1.72212589 | E26: 2.095012292 | F26: 2.565023658 | G26: 3.211550629 | H26: 4.169965051 | I26: 5.509706646 | J26: 7.554320327 | K26: 10.60220651 | L26: 16.46255257 | M26: 28.19286371 | N26: 52.93096922 | O26: 106.3420613 | P26: 209.614998 | Q26: 381.6242199 | R26: 680.2913648 | S26: 1031.709097 | T26: 1486.116197 | U26: 2039.691487 | V26: 2763.473346 | W26: 3712.774425 | X26: 4639.374958 | Y26: 4838.037185 | Z26: 3969.670477 | AA26: 2717.133163 | AB26: 1698.512134 | AC26: 986.6659914 | AD26: 460.9492603 | AE26: 160.0091567
A27: X | B27: =IMAGINARY(B25) -> 139.1702397 | C27: 160.3790057 | D27: 185.0167666 | E27: 213.0518562 | F27: 245.7115113 | G27: 285.0854887 | H27: 331.4379696 | I27: 386.2633355 | J27: 452.9973795 | K27: 538.3449639 | L27: 645.8251983 | M27: 777.7513756 | N27: 924.4736638 | O27: 1106.608601 | P27: 1308.652579 | Q27: 1561.000651 | R27: 1791.794276 | S27: 2051.544592 | T27: 2275.804567 | U27: 2375.718465 | V27: 2316.675442 | W27: 1928.069007 | X27: 888.191627 | Y27: -793.84147 | Z27: -2214.64476 | AA27: -2711.039525 | AB27: -2515.860256 | AC27: -2050.931607 | AD27: -1654.626926 | AE27: -1445.924276
A28: |Z| | B28: =IMABS(B25) -> 139.175682 | C28: 160.3855498 | D28: 185.0247812 | E28: 213.0621564 | F28: 245.7248993 | G28: 285.1035775 | H28: 331.4642006 | I28: 386.302629 | J28: 453.0603642 | K28: 538.4493541 | L28: 646.0349855 | M28: 778.2621922 | N28: 925.9877118 | O28: 1111.70645 | P28: 1325.333928 | Q28: 1606.972333 | R28: 1916.591524 | S28: 2296.357741 | T28: 2718.055883 | U28: 3131.194594 | V28: 3606.074048 | W28: 4183.556385 | X28: 4723.630422 | Y28: 4902.732716 | Z28: 4545.650131 | AA28: 3838.300136 | AB28: 3035.538881 | AC28: 2275.92404 | AD28: 1717.633396 | AE28: 1454.750818
A32: Module | B32: Version | C32: Date
A33: CubicSpline | B33: =CubicSpline_version("v") -> 1.02 | C33: =CubicSpline_version("d") -> 2008-04-06
A35: Copyright: Owen Duffy 2010. All rights reserved.

Sheet Mix
A1: Mix | B1: F14
A2: µ | B2: 220
A5: # #61 mix u' | E5: CSTable | J5: # #61 mix u'' | N5: CSTable
A6: 498531 | B6: 218.845 | E6: =cstable(A6:A36,B6:B36) -> 498531 | F6: 218.845 | G6: 0 | J6: 498531 | K6: 1.68369 | N6: =cstable(J6:J36,K6:K36) -> 498531 | O6: 1.68369 | P6: 0
A7: 502013 | B7: 218.818 | E7: 502013 | F7: 218.818 | G7: 1.845350713e-11 | J7: 502013 | K7: 1.68561 | N7: 502013 | O7: 1.68561 | P7: -1.254040066e-12
A8: 783777 | B8: 217.104 | E8: 783777 | F8: 217.104 | G8: -1.778873833e-12 | J8: 783777 | K8: 1.81344 | N8: 783777 | O8: 1.81344 | P8: 4.57977869e-13
A9: 900853 | B9: 216.571 | E9: 900853 | F9: 216.571 | G9: 4.61450535e-11 | J9: 900853 | K9: 1.86434 | N9: 900853 | O9: 1.86434 | P9: -1.07178035e-12
A10: 1396710 | B10: 218.001 | E10: 1396710 | F10: 218.001 | G10: -2.367703405e-11 | J10: 1396710 | K10: 2.03418 | N10: 1396710 | O10: 2.03418 | P10: 1.425385835e-12
A11: 1807010 | B11: 218.845 | E11: 1807010 | F11: 218.845 | G11: 3.672358119e-11 | J11: 1807010 | K11: 2.27161 | N11: 1807010 | O11: 2.27161 | P11: -1.547308554e-12
A12: 1964440 | B12: 219.944 | E12: 1964440 | F12: 219.944 | G12: -1.550134488e-11 | J12: 1964440 | K12: 2.35441 | N12: 1964440 | O12: 2.35441 | P12: 5.435524105e-12
A13: 2150500 | B13: 221.142 | E13: 2150500 | F13: 221.142 | G13: 8.680733631e-12 | J13: 2150500 | K13: 2.54969 | N13: 2150500 | O13: 2.54969 | P13: -1.875031509e-12
A14: 2705830 | B14: 225.189 | E14: 2705830 | F14: 225.189 | G14: -8.814190881e-12 | J14: 2705830 | K14: 3.12127 | N14: 2705830 | O14: 3.12127 | P14: 2.966116442e-12
A15: 2801660 | B15: 225.809 | E15: 2801660 | F15: 225.809 | G15: 1.827835009e-11 | J15: 2801660 | K15: 3.26354 | N15: 2801660 | O15: 3.26354 | P15: -9.338812122e-13
A16: 3599540 | B16: 235.441 | E16: 3599540 | F16: 235.441 | G16: 2.239407589e-12 | J16: 3599540 | K16: 4.49843 | N16: 3599540 | O16: 4.49843 | P16: 2.210394681e-12
A17: 4224520 | B17: 245.296 | E17: 4224520 | F17: 245.296 | G17: 1.955944135e-12 | J17: 4224520 | K17: 6.28327 | N17: 4224520 | O17: 6.28327 | P17: 3.686021089e-12
A18: 4788420 | B18: 253.296 | E18: 4788420 | F18: 253.296 | G18: -2.75579053e-11 | J18: 4788420 | K18: 8.85634 | N18: 4788420 | O18: 8.85634 | P18: 1.720181936e-13
A19: 4958020 | B19: 254.589 | E19: 4958020 | F19: 254.589 | G19: -3.18754364e-13 | J19: 4958020 | K19: 9.74231 | N19: 4958020 | O19: 9.74231 | P19: 9.637034015e-12
A20: 5818870 | B20: 260.625 | E20: 5818870 | F20: 260.625 | G20: 1.925845531e-12 | J20: 5818870 | K20: 17.4836 | N20: 5818870 | O20: 17.4836 | P20: 3.162288122e-12
A21: 6369990 | B21: 264.1 | E21: 6369990 | F21: 264.1 | G21: -1.705992975e-11 | J21: 6369990 | K21: 24.3823 | N21: 6369990 | O21: 24.3823 | P21: 7.119645021e-12
A22: 6688060 | B22: 264.596 | E22: 6688060 | F22: 264.596 | G22: 3.761705588e-13 | J22: 6688060 | K22: 29.1644 | N22: 6688060 | O22: 29.1644 | P22: 3.091749632e-12
A23: 7740790 | B23: 266.088 | E23: 7740790 | F23: 266.088 | G23: 3.364696162e-12 | J23: 7740790 | K23: 46.6589 | N23: 7740790 | O23: 46.6589 | P23: -1.177893465e-12
A24: 8356780 | B24: 266.873 | E24: 8356780 | F24: 266.873 | G24: -2.026470313e-11 | J24: 8356780 | K24: 57.1255 | N24: 8356780 | O24: 57.1255 | P24: 4.734008042e-12
A25: 8959210 | B25: 263.182 | E25: 8959210 | F25: 263.182 | G25: 4.816948834e-12 | J25: 8959210 | K25: 68.6649 | N25: 8959210 | O25: 68.6649 | P25: 3.600471823e-12
A26: 10155100 | B26: 256.669 | E26: 10155100 | F26: 256.669 | G26: -8.634295137e-13 | J26: 10155100 | K26: 89.1484 | N26: 10155100 | O26: 89.1484 | P26: -2.338054785e-11
A27: 10297500 | B27: 255.955 | E27: 10297500 | F27: 255.955 | G27: -6.017233082e-12 | J27: 10297500 | K27: 90.2187 | N27: 10297500 | O27: 90.2187 | P27: 4.224460291e-12
A28: 12340500 | B28: 239.718 | E28: 12340500 | F28: 239.718 | G28: 4.317957974e-12 | J28: 12340500 | K28: 105.36 | N28: 12340500 | O28: 105.36 | P28: -7.716079161e-12
A29: 12600900 | B29: 237.912 | E29: 12600900 | F29: 237.912 | G29: -5.859864024e-12 | J29: 12600900 | K29: 106.133 | N29: 12600900 | O29: 106.133 | P29: 9.949293576e-13
A30: 15206300 | B30: 210.833 | E30: 15206300 | F30: 210.833 | G30: 4.496208464e-12 | J30: 15206300 | K30: 113.35 | N30: 15206300 | O30: 113.35 | P30: -1.874657741e-12
A31: 15312500 | B31: 209.892 | E31: 15312500 | F31: 209.892 | G31: 7.541643236e-13 | J31: 15312500 | K31: 113.51 | N31: 15312500 | O31: 113.51 | P31: -5.738029944e-14
A32: 18350500 | B32: 187.115 | E32: 18350500 | F32: 187.115 | G32: 9.742124441e-13 | J32: 18350500 | K32: 117.752 | N32: 18350500 | O32: 117.752 | P32: -3.349207083e-14
A33: 19673300 | B33: 179.669 | E33: 19673300 | F33: 179.669 | G33: 3.194319178e-13 | J33: 19673300 | K33: 119.426 | N33: 19673300 | O33: 119.426 | P33: -2.407543177e-13
A34: 23576400 | B34: 161.665 | E34: 23576400 | F34: 161.665 | G34: 3.7662988e-13 | J34: 23576400 | K34: 122.888 | N34: 23576400 | O34: 122.888 | P34: 7.418675168e-14
A35: 25630300 | B35: 154.313 | E35: 25630300 | F35: 154.313 | G35: 2.265589628e-13 | J35: 25630300 | K35: 124.52 | N35: 25630300 | O35: 124.52 | P35: -2.427483922e-13
A36: 30080500 | B36: 141.143 | E36: 30080500 | F36: 141.143 | G36: 0 | J36: 30080500 | K36: 125.827 | N36: 30080500 | O36: 125.827 | P36: 0
A41: 2
A42: 2
A43: 3
A44: 4
A45: 5
A47: =sumthem(A41:C45) -> 
